fUSD/lending_fUSD_20251119
["ID","MTS","AMOUNT","RATE_DAILY","PERIOD"]
[394397167,1763530238404,-151.0,0.00041728,120]
[394397168,1763530238413,-151.0,0.00041728,120]
[394397169,1763530238423,-151.0,0.00041728,120]
[394397170,1763530238433,-151.0,0.00041728,120]
[394397171,1763530238442,-151.0,0.00041728,120]
[394397172,1763530238453,-151.0,0.00041728,120]
[394397173,1763530238466,-182.717014,0.00041728,120]
[394397174,1763530238476,-151.0,0.00041728,120]
[394397175,1763530238486,-160.36581,0.00041728,120]
[394397176,1763530238497,-151.0,0.00041728,14]
[394397177,1763530238507,-181.690351,0.00041728,14]
[394397178,1763530238517,-151.0,0.00041728,120]
[394397179,1763530238527,-191.681252,0.00041728,120]
[394397180,1763530238537,-157.31533,0.00041728,120]
[394397181,1763530238547,-151.0,0.00041728,120]
[394397182,1763530238556,-151.0,0.00041728,120]
[394397183,1763530238566,-151.0,0.00041728,120]
[394397184,1763530238575,-151.0,0.00041728,120]
[394397185,1763530238584,-151.0,0.00041728,120]
[394397186,1763530238594,-151.0,0.00041728,120]
[394397187,1763530238603,-151.0,0.00041728,120]
[394397188,1763530238612,-151.0,0.00041728,120]
[394397189,1763530238622,-151.0,0.00041728,120]
[394397190,1763530238631,-151.0,0.00041728,120]
[394397191,1763530238640,-151.0,0.00041728,120]
[394397192,1763530238650,-151.0,0.00041728,120]
[394397193,1763530238659,-151.0,0.00041728,120]
[394397194,1763530238668,-179.674914,0.00041728,120]
[394397195,1763530238678,-263.285936,0.00041728,120]
[394397196,1763530238687,-179.674914,0.00041728,120]
[394397197,1763530238697,-179.674914,0.00041728,120]
[394397198,1763530238706,-151.0,0.00041728,120]
[394397199,1763530238716,-179.674914,0.00041728,120]
[394397200,1763530238726,-151.0,0.00041728,120]
[394397201,1763530238735,-151.0,0.00041728,120]
[394397202,1763530238745,-676.36329491,0.00041728,120]
[394397203,1763530238754,-2393.92489732,0.00041728,15]
[394397204,1763530238764,-6874.06469327,0.00041728,15]
[394397205,1763530238773,-235.28899,0.00041728,120]
[394397206,1763530238783,-235.28899,0.00041728,120]
[394397207,1763530238792,-235.28899,0.00041728,120]
[394397208,1763530238802,-235.28899,0.00041728,120]
[394397209,1763530238811,-162.562247,0.00041728,120]
[394397210,1763530238820,-165.490344,0.00041728,120]
[394397211,1763530238829,-151.0,0.00041728,30]
[394397212,1763530238838,-151.0,0.00041728,30]
[394397213,1763530238847,-151.0,0.00041728,30]
[394397214,1763530238856,-237.820858,0.00041728,30]
[394397215,1763530238866,-151.0,0.00041728,120]
[394397216,1763530238875,-3674.00105714,0.00041729,2]
[394397217,1763530238885,-300.0,0.0004173,2]
[394397218,1763530238895,-300.0,0.00041731,2]
[394397219,1763530238904,-300.0,0.00041733,2]
[394397220,1763530238913,-159.93,0.00041734,14]
[394397221,1763530238923,-271.63759392,0.00041736,4]
[394397222,1763530238932,-150.0,0.00041737,14]
[394397223,1763530238942,-300.0,0.00041738,2]
[394397224,1763530238951,-159.92,0.00041746,14]
[394397225,1763530238961,-300.0,0.00041752,2]
[394397226,1763530238970,-150.0,0.00041766,14]
[394397227,1763530238980,-150.0,0.00041767,14]
[394397228,1763530238989,-300.0,0.00041773,2]
[394397229,1763530239000,-300.0,0.00041777,2]
[394397230,1763530239009,-150.0,0.00041787,14]
[394397231,1763530239018,-300.0,0.00041789,2]
[394397232,1763530239028,-500.0,0.00041795,30]
[394397233,1763530239037,-1124.35599048,0.000418,120]
[394397234,1763530239047,-150.0,0.000418,60]
[394397235,1763530239056,-996.0,0.000418,30]
[394397236,1763530239066,-309.0,0.000418,30]
[394397237,1763530239076,-206.0,0.000418,30]
[394397238,1763530239086,-455.0,0.000418,30]
[394397239,1763530239095,-500.0,0.00041806,2]
[394397240,1763530239105,-140619.3760451,0.00041807,2]
[394397241,1763530239114,-151.0,0.00041807,120]
[394397242,1763530239123,-9275.6157717,0.00041807,2]
[394397243,1763530239133,-151.0,0.00041808,2]
[394397244,1763530239143,-300.0,0.00041808,2]
[394397245,1763530239152,-488.0,0.00041808,120]
[394397246,1763530239161,-656.8236041,0.00041816,2]
[394397247,1763530239171,-656.82360409,0.00041816,2]
[394397248,1763530239180,-381.00924691,0.00041818,7]
[394397249,1763530239189,-381.00924691,0.00041818,7]
[394397250,1763530239198,-150.0,0.00041821,2]
[394397251,1763530239207,-899.72426509,0.00041821,2]
[394397252,1763530239217,-150.0,0.00041821,2]
[394397253,1763530239226,-932.69839685,0.00041821,2]
[394397254,1763530239235,-150.0,0.00041821,2]
[394397255,1763530239245,-195.0348888,0.00041821,2]
[394397256,1763530239254,-300.0,0.00041821,2]
[394397257,1763530239263,-150.0,0.00041822,14]
[394397258,1763530239272,-500.0,0.00041822,2]
[394397259,1763530239281,-500.0,0.00041822,2]
[394397260,1763530239290,-500.0,0.00041822,2]
[394397261,1763530239299,-500.0,0.00041822,2]
[394397262,1763530239309,-1273.255428,0.00041823,120]
[394397263,1763530239318,-200.0,0.00041823,120]
[394397264,1763530239327,-2504.1838872,0.00041823,2]
[394397265,1763530239336,-3077.1272263,0.00041823,2]
[394397266,1763530239345,-515245.5079866,0.00041823,2]
[394397267,1763530239354,-154.576637,0.00041823,120]
[394397268,1763530239363,-153.045156,0.00041823,120]
[394397269,1763530239372,-151.0,0.00041823,120]
[394397270,1763530239381,-151.0,0.00041823,120]
[394397271,1763530239390,-159.230608,0.00041823,120]
[394397272,1763530239399,-151.0,0.00041823,120]
[394397273,1763530239409,-151.0,0.00041823,120]
[394397274,1763530239417,-151.0,0.00041823,120]
[394397275,1763530239427,-151.0,0.00041823,120]
[394397276,1763530239436,-151.0,0.00041823,120]
[394397277,1763530239445,-163.500584,0.00041823,120]
[394397278,1763530239455,-151.0,0.00041823,120]
[394397279,1763530239468,-156.46601,0.00041823,120]
[394397280,1763530239478,-151.0,0.00041823,120]
[394397281,1763530239487,-164.319033,0.00041823,120]
[394397282,1763530239496,-151.0,0.00041823,14]
[394397283,1763530239506,-151.0,0.00041823,120]
[394397284,1763530239515,-151.0,0.00041823,120]
[394397285,1763530239525,-151.0,0.00041823,120]
[394397286,1763530239535,-151.0,0.00041823,120]
[394397287,1763530239545,-151.0,0.00041823,120]
[394397288,1763530239554,-151.0,0.00041823,120]
[394397289,1763530239563,-151.0,0.00041823,120]
[394397290,1763530239572,-151.0,0.00041823,120]
[394397291,1763530239582,-151.0,0.00041823,120]
[394397292,1763530239591,-151.0,0.00041823,120]
[394397293,1763530239599,-151.0,0.00041823,120]
[394397294,1763530239609,-151.0,0.00041823,120]
[394397295,1763530239618,-151.0,0.00041823,120]
[394397296,1763530239627,-285.330623,0.00041823,120]
[394397297,1763530239636,-179.674914,0.00041823,120]
[394397298,1763530239645,-179.674914,0.00041823,120]
[394397299,1763530239654,-179.674914,0.00041823,120]
[394397300,1763530239664,-151.0,0.00041823,120]
[394397301,1763530239673,-179.674914,0.00041823,120]
[394397302,1763530239683,-265.852755,0.00041823,120]
[394397303,1763530239692,-151.0,0.00041823,120]
[394397304,1763530239702,-235.28899,0.00041823,120]
[394397305,1763530239711,-235.28899,0.00041823,120]
[394397306,1763530239720,-235.28899,0.00041823,120]
[394397307,1763530239729,-235.28899,0.00041823,120]
[394397308,1763530239739,-151.0,0.00041823,30]
[394397309,1763530239748,-151.0,0.00041823,30]
[394397310,1763530239757,-151.0,0.00041823,30]
[394397311,1763530239766,-151.0,0.00041823,120]
[394397312,1763530239776,-500.0,0.00041826,120]
[394397313,1763530239785,-248.27148838,0.00041826,120]
[394397314,1763530239794,-500.0,0.00041826,7]
[394397315,1763530239803,-500.0,0.00041826,120]
[394397316,1763530239813,-300.0,0.00041826,2]
[394397317,1763530239822,-500.0,0.00041826,30]
[394397318,1763530239832,-500.0,0.00041826,120]
[394397319,1763530239842,-500.0,0.00041826,120]
[394397320,1763530239852,-500.0,0.00041827,120]
[394397321,1763530239861,-500.0,0.00041827,120]
[394397322,1763530239870,-500.0,0.00041827,120]
[394397324,1763530239879,-500.0,0.00041827,120]
[394397325,1763530239888,-500.0,0.00041827,120]
[394397327,1763530239897,-529.77254866,0.00041827,120]
[394397328,1763530239907,-500.0,0.00041827,7]
[394397330,1763530239916,-500.0,0.00041827,7]
[394397331,1763530239926,-500.0,0.00041827,7]
[394397332,1763530239935,-500.0,0.00041827,7]
[394397333,1763530239944,-500.0,0.00041827,7]
[394397335,1763530239953,-500.0,0.00041827,7]
[394397336,1763530239963,-500.0,0.00041827,7]
[394397337,1763530239973,-500.0,0.00041827,7]
[394397338,1763530239982,-500.0,0.00041827,7]
[394397339,1763530239992,-500.0,0.00041827,7]
[394397340,1763530240004,-500.0,0.00041827,7]
[394397341,1763530240014,-321.9559666,0.00041827,7]
[394397342,1763530240024,-500.0,0.00041827,120]
[394397343,1763530240034,-517.72064468,0.00041827,120]
[394397344,1763530240044,-500.0,0.00041827,30]
[394397345,1763530240054,-525.2084021,0.00041827,30]
[394397346,1763530240064,-500.0,0.00041827,120]
[394397347,1763530240074,-519.55408255,0.00041827,120]
[394397348,1763530240083,-500.0,0.00041827,120]
[394397349,1763530240093,-500.0,0.00041827,120]
[394397350,1763530240102,-500.0,0.00041827,120]
[394397351,1763530240111,-500.0,0.00041827,120]
[394397352,1763530240120,-518.37547451,0.00041827,120]
[394397353,1763530240129,-500.0,0.00041827,2]
[394397354,1763530240138,-500.0,0.00041827,2]
[394397355,1763530240147,-500.0,0.00041827,2]
[394397356,1763530240156,-500.0,0.00041827,2]
[394397357,1763530240165,-500.0,0.00041827,2]
[394397358,1763530240174,-500.0,0.00041827,2]
[394397359,1763530240184,-500.0,0.00041827,2]
[394397360,1763530240193,-500.0,0.00041827,2]
[394397361,1763530240202,-335.82259186,0.00041827,2]
[394397362,1763530240211,-500.0,0.00041827,7]
[394397363,1763530240248,-10262.65247921,0.00041827,27]
[394397364,1763530240257,-912143.16406255,0.00041828,120]
[394397365,1763530240285,-172.06266027,0.00038562,13]
[394397366,1763530240294,-705.0,0.00041454,2]
[394397367,1763530240303,-170.96446725,0.00041728,28]
[394397368,1763530240312,-409.91378069,0.00041828,120]
[394397369,1763530240326,-1881.13027418,0.00041828,120]
[394397370,1763530240337,-3041.86544,0.00041828,120]
[394397371,1763530240348,-10025.51,0.00041828,120]
[394397372,1763530240359,-398.85403248,0.00041828,120]
[394397373,1763530240370,-120968.4880921,0.00041828,120]
[394397395,1763530243397,-249.76,0.00040726,7]
[394397396,1763530243406,-339.58105002,0.00041828,120]
[394397397,1763530243417,-3521.04974912,0.00041828,120]
[394397406,1763530246033,-1372.4,0.00039641,2]
[394397407,1763530246091,-359.62130208,0.00039641,2]
[394397408,1763530246102,-428.14468468,0.00039641,2]
[394397409,1763530246114,-339.83401324,0.00039641,2]
[394397410,1763530246123,-172.06266027,0.000399,15]
[394397411,1763530246133,-478.61,0.00040877,2]
[394397412,1763530246142,-150.0,0.00041096,30]
[394397413,1763530246152,-3420.08888649,0.00041828,120]
[394397414,1763530246163,-6293.45634661,0.00041828,120]
[394397415,1763530246553,-1256.96969341,0.00041828,120]
[394397416,1763530246564,-3959.67707339,0.00041828,120]
[394397429,1763530638826,190.38368524,0.00041837,120]
[394397549,1763531432207,-192.0,0.00023,7]
[394397551,1763531432217,-214.08,0.00032258,7]
[394397553,1763531432230,-1.04068079,0.00036835,2]
[394397555,1763531432241,-1736.55047373,0.00036835,2]
[394397558,1763531432252,-1125.32884548,0.00036835,2]
[394397559,1763531432262,-504.0,0.00038573,2]
[394397562,1763531432271,-400.0,0.00038598,5]
[394397563,1763531432280,-500.0,0.00038599,30]
[394397565,1763531432290,-500.0,0.00038599,30]
[394397567,1763531432299,-525.2084021,0.00038599,30]
[394397568,1763531432309,-500.0,0.00038599,120]
[394397569,1763531432318,-500.0,0.00038599,120]
[394397570,1763531432327,-519.55408255,0.00038599,120]
[394397571,1763531432337,-500.0,0.00038599,120]
[394397572,1763531432346,-500.0,0.00038599,120]
[394397573,1763531432357,-500.0,0.00038599,120]
[394397574,1763531432366,-412.0,0.00039,5]
[394397575,1763531432375,-182.8722911,0.00039133,2]
[394397576,1763531432387,-455.01240028,0.00039133,2]
[394397577,1763531432398,-523.0,0.00039133,2]
[394397578,1763531432409,-562.87530862,0.00039133,2]
[394397579,1763531432422,-150.99,0.00039133,30]
[394397580,1763531432431,-2949.79,0.00039133,2]
[394397581,1763531432440,-150.99,0.00039133,2]
[394397582,1763531432452,-495.71,0.00039133,2]
[394397583,1763531432461,-299.99,0.00039133,120]
[394397584,1763531432471,-6816.0,0.00039133,2]
[394397585,1763531432480,-9999.99,0.00039133,2]
[394397586,1763531432489,-4921.74,0.00039133,90]
[394397587,1763531432498,-509.65,0.00039133,30]
[394397588,1763531432508,-500.0,0.00039133,2]
[394397589,1763531432517,-500.0,0.00039133,5]
[394397590,1763531432527,-500.0,0.00039133,5]
[394397591,1763531432537,-503.37601405,0.00039173,5]
[394397592,1763531432546,-504.41947256,0.00039173,5]
[394397593,1763531432555,-200.58912759,0.00039173,5]
[394397594,1763531432564,-194.92129026,0.00039173,5]
[394397595,1763531432574,-500.0,0.00039173,3]
[394397596,1763531432583,-500.60732053,0.00039173,5]
[394397597,1763531432592,-501.23636981,0.00039173,5]
[394397598,1763531432601,-500.0,0.0003922,5]
[394397599,1763531432610,-500.0,0.0003922,5]
[394397600,1763531432622,-9999.99,0.00039225,2]
[394397601,1763531432631,-324.75,0.00039225,2]
[394397602,1763531432641,-155.49,0.00039225,2]
[394397603,1763531432650,-7680.32,0.00039225,30]
[394397604,1763531432660,-7352.67,0.00039225,2]
[394397605,1763531432669,-634.63,0.00039225,30]
[394397606,1763531432678,-168.0,0.00039264,7]
[394397607,1763531432686,-500.0,0.00039273,5]
[394397608,1763531432696,-152.0,0.00039299,3]
[394397609,1763531432706,-504.0,0.00039318,7]
[394397610,1763531432715,-500.0,0.00039433,5]
[394397611,1763531432724,-350.17657993,0.00039433,5]
[394397612,1763531432733,-362.55630464,0.00039433,5]
[394397613,1763531432743,-500.0,0.00039433,2]
[394397614,1763531432752,-501.55635846,0.00039433,5]
[394397615,1763531432761,-500.0,0.00039433,5]
[394397616,1763531432771,-168.0,0.00039504,120]
[394397617,1763531432780,-150.0,0.00039528,2]
[394397618,1763531432790,-200.0,0.00039541,2]
[394397619,1763531432802,-1946.26456973,0.00039579,120]
[394397620,1763531432814,-3053.73543027,0.00039579,120]
[394397621,1763531432828,-150.0,0.00039581,2]
[394397622,1763531432838,-1000.0,0.00039606,120]
[394397623,1763531432849,-1000.0,0.00039638,2]
[394397624,1763531432858,-500.0,0.0003974,120]
[394397625,1763531432868,-500.0,0.0003974,120]
[394397626,1763531432877,-500.0,0.0003974,120]
[394397627,1763531432886,-500.0,0.00039749,120]
[394397628,1763531432896,-517.72064468,0.0003975,120]
[394397629,1763531432905,-6327.17,0.00039817,2]
[394397630,1763531432915,-502.12546561,0.00039821,5]
[394397631,1763531432925,-557.84,0.00039829,2]
[394397632,1763531432934,-168.0,0.00039903,7]
[394397633,1763531432944,-1759.88,0.0003991,2]
[394397634,1763531432954,-150.0,0.00039913,2]
[394397635,1763531432963,-478.61,0.00039918,2]
[394397636,1763531432972,-478.61,0.00039918,2]
[394397637,1763531432981,-478.61,0.00039918,2]
[394397638,1763531432991,-478.61,0.00039918,2]
[394397639,1763531433000,-478.61,0.00039918,2]
[394397640,1763531433010,-168.0,0.00039974,2]
[394397641,1763531433019,-217.89,0.0004,30]
[394397642,1763531433031,-732.781,0.00040109,57]
[394397643,1763531433040,-194.275,0.00040109,57]
[394397644,1763531433049,-1000.0,0.00040242,2]
[394397645,1763531433059,-168.0,0.00040247,120]
[394397646,1763531433068,-168.0,0.00040406,2]
[394397647,1763531433078,-790.0,0.00040566,30]
[394397648,1763531433087,-229.54604458,0.00040572,2]
[394397649,1763531433096,-1001.33663876,0.00040726,60]
[394397650,1763531433106,-168.0,0.00040735,7]
[394397651,1763531433115,-968.27969888,0.00040777,6]
[394397652,1763531433124,-168.7,0.00040777,2]
[394397653,1763531433134,-2000.0,0.000408,2]
[394397654,1763531433143,-478.61,0.00040877,2]
[394397655,1763531433153,-478.61,0.00040877,2]
[394397656,1763531433162,-478.61,0.00040877,2]
[394397657,1763531433172,-478.61,0.00040877,2]
[394397658,1763531433181,-478.61,0.00040877,2]
[394397659,1763531433191,-478.61,0.00040877,2]
[394397660,1763531433202,-478.61,0.00040877,2]
[394397661,1763531433211,-478.61,0.00040877,2]
[394397662,1763531433220,-700.83,0.00040877,2]
[394397663,1763531433230,-1158.14881147,0.000409,14]
[394397664,1763531433242,-141.85118853,0.000409,14]
[394397666,1763531433251,-298.90507701,0.0004094,7]
[394397826,1763531438093,-201.09492299,0.00040876,7]
[394397827,1763531438103,-507.30186684,0.00040876,2]
[394397828,1763531438113,-501.79448901,0.00040876,7]
[394397829,1763531438123,-500.0,0.00040876,31]
[394397830,1763531438132,-500.0,0.00040876,31]
[394397831,1763531438142,-500.0,0.00040876,31]
[394397832,1763531438152,-345.82582737,0.00040876,31]
[394397833,1763531438161,-234.00124603,0.00040876,31]
[394397834,1763531438207,-265.99875397,0.00040876,31]
[394397835,1763531438219,-500.0,0.00040876,31]
[394397836,1763531438228,-500.0,0.00040876,31]
[394397837,1763531438238,-500.0,0.00040876,31]
[394397838,1763531438248,-500.0,0.00040876,31]
[394397839,1763531438257,-500.0,0.00040876,31]
[394397840,1763531438267,-478.61,0.00040941,2]
[394397841,1763531438277,-700.83,0.00040941,2]
[394397842,1763531438286,-700.83,0.00040941,2]
[394397843,1763531438296,-700.83,0.00040941,2]
[394397844,1763531438310,-700.83,0.00040941,2]
[394397845,1763531438319,-700.83,0.00040941,2]
[394397846,1763531438328,-200.0,0.00040973,5]
[394397847,1763531438337,-790.0,0.00040984,30]
[394397848,1763531438347,-2600.0,0.00041,14]
[394397849,1763531438356,-181.41586634,0.00041,2]
[394397850,1763531438366,-518.37547451,0.0004105,120]
[394397851,1763531438376,-500.0,0.00041095,2]
[394397853,1763531438386,-564.48,0.00041095,2]
[394397855,1763531438396,-502.58141552,0.00041095,2]
[394397857,1763531438406,-154.88,0.00041096,2]
[394397858,1763531438415,-200.0,0.00041096,20]
[394397859,1763531438425,-200.0,0.00041096,20]
[394397860,1763531438435,-200.0,0.00041096,20]
[394397861,1763531438445,-3900.0,0.000411,15]
[394397862,1763531438456,-219.0199321,0.00041194,2]
[394397863,1763531438466,-5300.0,0.000412,15]
[394397864,1763531438476,-189.82,0.00041273,91]
[394397865,1763531438486,-6600.0,0.000413,15]
[394397866,1763531438496,-168.0,0.00041356,2]
[394397867,1763531438506,-564.48,0.00041369,2]
[394397868,1763531438517,-182.91578709,0.000414,19]
[394397869,1763531438526,-1300.0,0.000414,15]
[394397870,1763531438536,-790.0,0.00041402,30]
[394397871,1763531438545,-168.0,0.00041402,2]
[394397872,1763531438555,-219.0199321,0.00041417,2]
[394397873,1763531438565,-3433.0,0.00041457,2]
[394397874,1763531438576,-1319.0,0.00041457,2]
[394397875,1763531438585,-581.405,0.00041457,2]
[394397876,1763531438594,-742.621,0.00041457,2]
[394397877,1763531438604,-1606.63,0.00041457,2]
[394397878,1763531438613,-822.0,0.00041457,2]
[394397879,1763531438623,-1191.0,0.00041457,2]
[394397880,1763531438632,-907.0,0.00041457,2]
[394397881,1763531438642,-1287.555,0.00041457,2]
[394397882,1763531438652,-800.975,0.00041457,2]
[394397883,1763531438662,-150.0,0.00041457,2]
[394397884,1763531438672,-1605.0,0.00041457,2]
[394397885,1763531438682,-705.0,0.00041457,2]
[394397886,1763531438695,-561.0,0.00041457,2]
[394397887,1763531438707,-783.6012,0.00041469,2]
[394397888,1763531438716,-533.12509319,0.00041473,10]
[394397889,1763531438725,-500.0,0.00041473,10]
[394397890,1763531438735,-507.71507444,0.00041473,10]
[394397891,1763531438745,-491.52880852,0.0004149,28]
[394397892,1763531438755,-7661.88463955,0.0004149,15]
[394397893,1763531438766,-5328.3868,0.000415,2]
[394397894,1763531438776,-1300.0,0.000415,15]
[394397895,1763531438791,-3362.4926,0.000415,120]
[394397896,1763531438812,-195.82730686,0.00041504,3]
[394397897,1763531438832,-7661.88463953,0.00041516,15]
[394397898,1763531438843,-491.52880851,0.00041524,28]
[394397899,1763531438853,-162.97952068,0.00041533,7]
[394397900,1763531438865,-7661.88463953,0.00041543,15]
[394397901,1763531438876,-491.52880851,0.00041558,28]
[394397902,1763531438887,-1000.0,0.00041566,14]
[394397903,1763531438897,-300.0,0.00041569,2]
[394397914,1763531439140,-1097.92879499,0.00041569,15]
[394397916,1763531439153,-6563.95584454,0.00041569,15]
[394397918,1763531439163,-300.0,0.00041571,2]
[394397920,1763531439173,-300.0,0.00041572,2]
[394397922,1763531439185,-753.25,0.0004158,30]
[394397924,1763531439197,-67233.7035344,0.0004158,4]
[394397926,1763531439210,-7470.41150382,0.00041588,4]
[394397928,1763531439221,-3445.29,0.00041589,2]
[394397930,1763531439233,-500.0,0.00041589,2]
[394397932,1763531439246,-500.0,0.00041589,120]
[394397934,1763531439256,-300.0,0.00041589,2]
[394397936,1763531439266,-500.0,0.00041589,120]
[394397938,1763531439276,-500.0,0.00041589,7]
[394397940,1763531439286,-500.0,0.00041589,2]
[394397942,1763531439295,-500.0,0.00041589,2]
[394397944,1763531439304,-500.0,0.00041589,2]
[394397946,1763531439314,-337.34217749,0.00041589,31]
[394397948,1763531439324,-197.11254761,0.00041589,31]
[394397950,1763531439334,-576.3092821,0.00041589,31]
[394397952,1763531439343,-156878.64158,0.0004159,4]
[394397954,1763531439353,-232188.129952,0.0004159,4]
[394397956,1763531439363,-815.1596655,0.0004159,7]
[394397958,1763531439373,-150.53,0.0004159,2]
[394397960,1763531439383,-491.52880851,0.00041592,28]
[394397962,1763531439392,-7661.88463953,0.00041596,15]
[394397964,1763531439402,-1492.90744854,0.00041596,2]
[394397966,1763531439411,-670.73,0.00041599,30]
[394397968,1763531439420,-500.0,0.00041599,120]
[394397971,1763531439433,-500.0,0.00041599,120]
[394397973,1763531439442,-500.0,0.00041599,120]
[394397975,1763531439452,-254.88724792,0.00041599,120]
[394397977,1763531439464,-500.0,0.00041599,7]
[394397978,1763531439474,-500.0,0.00041599,7]
[394397980,1763531439483,-500.0,0.00041599,7]
[394397983,1763531439492,-500.0,0.00041599,2]
[394397985,1763531439502,-500.0,0.00041599,2]
[394397987,1763531439512,-500.0,0.00041599,2]
[394397988,1763531439521,-500.0,0.00041599,2]
[394397990,1763531439530,-500.0,0.00041599,2]
[394397993,1763531439540,-500.0,0.00041599,2]
[394397995,1763531439550,-500.0,0.00041599,2]
[394397997,1763531439559,-7273.0,0.000416,7]
[394397999,1763531439569,-760000.0,0.000416,2]
[394398001,1763531439578,-1000.0,0.000416,14]
[394398003,1763531439587,-1300.0,0.000416,15]
[394398005,1763531439597,-150.0,0.00041606,14]
[394398007,1763531439606,-300.0,0.00041607,2]
[394398009,1763531439615,-195.82730686,0.0004162,4]
[394398011,1763531439626,-500.0,0.00041621,120]
[394398013,1763531439636,-500.0,0.00041621,7]
[394398015,1763531439645,-7661.88463953,0.00041622,15]
[394398017,1763531439655,-491.52880851,0.00041626,28]
[394398019,1763531439664,-2000.0,0.00041627,3]
[394398021,1763531439673,-300.0,0.00041631,2]
[394398023,1763531439683,-3674.00105714,0.00041632,2]
[394398025,1763531439692,-564.48,0.00041643,2]
[394398027,1763531439702,-214.08,0.00041645,14]
[394398029,1763531439714,-7661.88463953,0.00041649,15]
[394398031,1763531439723,-300.0,0.00041653,2]
[394398033,1763531439733,-300.0,0.00041654,2]
[394398035,1763531439743,-205.29007824,0.00041658,10]
[394398037,1763531439753,-491.52880851,0.0004166,28]
[394398039,1763531439763,-178.39,0.00041663,14]
[394398041,1763531439772,-300.0,0.00041669,2]
[394398043,1763531439781,-7661.88463953,0.00041675,15]
[394398045,1763531439791,-300.0,0.00041693,2]
[394398047,1763531439800,-198.54828745,0.00041694,14]
[394398049,1763531439811,-491.52880851,0.00041694,28]
[394398051,1763531439820,-300.0,0.00041696,2]
[394398053,1763531439829,-208.01973905,0.000417,120]
[394398055,1763531439839,-9825.1047846,0.000417,7]
[394398057,1763531439848,-188.58154472,0.000417,120]
[394398059,1763531439858,-199.74447139,0.000417,120]
[394398061,1763531439868,-1300.0,0.000417,15]
[394398063,1763531439877,-7661.88463953,0.00041702,15]
[394398065,1763531439889,-1000.0,0.00041705,14]
[394398067,1763531439899,-159.93,0.00041708,14]
[394398069,1763531439909,-300.0,0.00041713,2]
[394398071,1763531439918,-150.53,0.00041718,2]
[394398073,1763531439927,-122959.8632,0.00041728,120]
[394398075,1763531439936,-208.28949678,0.00041728,2]
[394398077,1763531439945,-491.52880851,0.00041728,28]
[394398079,1763531439955,-4375.83010664,0.00041728,2]
[394398081,1763531439964,-7661.88463953,0.00041728,15]
[394398083,1763531439973,-169.01403616,0.00041728,2]
[394398085,1763531439983,-16402.11672594,0.00041728,2]
[394398087,1763531440000,-169.01403613,0.0004173,2]
[394398089,1763531440010,-169.01403613,0.00041731,2]
[394398091,1763531440019,-14604.79119576,0.00041732,2]
[394398093,1763531440028,-208.28949676,0.00041732,2]
[394398096,1763531440038,-4375.83010664,0.00041732,2]
[394398098,1763531440059,-169.01403613,0.00041733,2]
[394398100,1763531440069,-169.01403613,0.00041734,2]
[394398103,1763531440079,-500.0,0.00041735,2]
[394398106,1763531440088,-195.82730686,0.00041736,4]
[394398109,1763531440098,-208.28949676,0.00041736,2]
[394398111,1763531440109,-4375.83010664,0.00041736,2]
[394398113,1763531440118,-169.01403613,0.00041736,2]
[394398115,1763531440127,-150.0,0.00041756,14]